[Event "Early Titled Tuesday Blitz | February 8 2022"]
[White "Miszler, Levente"]
[Black "Manukian, Artak"]
[WhiteFideId "763276"]
[BlackFideId "13301373"]
[WhiteElo "1966"]
[BlackElo "2405"]
[Result "0-1"]
[Round "11"]
[TimeControl "180+1"]
[Date "2022.02.08"]
[WhiteClock "0:00:09"]
[BlackClock "0:00:15"]

1. d4 {[%clk 0:03:00]}  Nf6 {[%clk 0:02:59]} 2. Nf3 {[%clk 0:03:01]}  e6 {[%clk 0:02:59]} 3. c4 {[%clk 0:03:01]}  d5 {[%clk 0:02:58]} 4. Nc3 {[%clk 0:03:01]}  c5 {[%clk 0:02:57]} 5. cxd5 {[%clk 0:02:56]}  exd5 {[%clk 0:02:57]} 6. Bg5 {[%clk 0:02:50]}  Be6 {[%clk 0:02:35]} 7. e3 {[%clk 0:02:46]}  Nc6 {[%clk 0:02:34]} 8. Bb5 {[%clk 0:02:46]}  a6 {[%clk 0:02:23]} 9. Bxc6+ {[%clk 0:02:44]}  bxc6 {[%clk 0:02:24]} 10. Ne5 {[%clk 0:02:00]}  Qb6 {[%clk 0:02:15]} 11. Qa4 {[%clk 0:01:59]}  Rc8 {[%clk 0:02:12]} 12. O-O {[%clk 0:01:55]}  cxd4 {[%clk 0:02:12]} 13. exd4 {[%clk 0:01:54]}  Bd6 {[%clk 0:02:12]} 14. Rfe1 {[%clk 0:01:49]}  O-O {[%clk 0:02:11]} 15. Qc2 {[%clk 0:01:29]}  Qxd4 {[%clk 0:02:05]} 16. Rad1 {[%clk 0:01:25]}  Qa7 {[%clk 0:01:45]} 17. Bxf6 {[%clk 0:00:55]}  gxf6 {[%clk 0:01:45]} 18. Nc4 {[%clk 0:00:56]}  Bb8 {[%clk 0:01:34]} 19. Ne3 {[%clk 0:00:47]}  d4 {[%clk 0:01:29]} 20. Ne4 {[%clk 0:00:47]}  Qe7 {[%clk 0:01:15]} 21. Rxd4 {[%clk 0:00:39]}  Kh8 {[%clk 0:01:12]} 22. Ng3 {[%clk 0:00:21]}  Rg8 {[%clk 0:01:10]} 23. Nef5 {[%clk 0:00:19]}  Qc7 {[%clk 0:01:01]} 24. Rh4 {[%clk 0:00:18]}  Rg6 {[%clk 0:00:59]} 25. Qe2 {[%clk 0:00:14]}  Qe5 {[%clk 0:00:39]} 26. Qd2 {[%clk 0:00:12]}  Qd5 {[%clk 0:00:24]} 27. Qe2 {[%clk 0:00:12]}  Bxf5 {[%clk 0:00:19]} 28. Qe8+ {[%clk 0:00:12]}  Rxe8 {[%clk 0:00:17]} 29. Rxe8+ {[%clk 0:00:12]}  Kg7 {[%clk 0:00:17]} 30. Nxf5+ {[%clk 0:00:13]}  Qxf5 {[%clk 0:00:16]} 31. Rhe4 {[%clk 0:00:12]}  Ba7 {[%clk 0:00:14]} 32. Re2 {[%clk 0:00:10]}  Qb1+ {[%clk 0:00:14]} 33. Re1 {[%clk 0:00:08]}  Qxb2 {[%clk 0:00:15]} 34. R8e2 {[%clk 0:00:08]}  Qd4 {[%clk 0:00:15]} 35. g3 {[%clk 0:00:09]}  Rg5 {[%clk 0:00:15]} 36. Kg2 {[%clk 0:00:09]}  Re5 {[%clk 0:00:15]} 0-1


[Site "https://www.chess.com"]

[Event "Early Titled Tuesday Blitz | February 8 2022"]
[White "Moroni, Luca Jr"]
[Black "Goryachkina, Aleksandra"]
[WhiteFideId "865834"]
[BlackFideId "4147103"]
[WhiteElo "2573"]
[BlackElo "2426"]
[Result "1-0"]
[Round "11"]
[TimeControl "180+1"]
[Date "2022.02.08"]
[WhiteClock "0:00:12"]
[BlackClock "0:00:05"]

1. Nc3 {[%clk 0:03:00]}  c5 {[%clk 0:02:59]} 2. d4 {[%clk 0:02:59]}  cxd4 {[%clk 0:02:59]} 3. Qxd4 {[%clk 0:03:00]}  Nc6 {[%clk 0:02:58]} 4. Qh4 {[%clk 0:03:01]}  d5 {[%clk 0:02:47]} 5. Nf3 {[%clk 0:02:51]}  Nf6 {[%clk 0:02:43]} 6. Bg5 {[%clk 0:02:50]}  e6 {[%clk 0:02:20]} 7. O-O-O {[%clk 0:02:46]}  Bb4 {[%clk 0:02:18]} 8. Ne4 {[%clk 0:02:36]}  Be7 {[%clk 0:02:12]} 9. Nxf6+ {[%clk 0:02:35]}  Bxf6 {[%clk 0:02:12]} 10. Bxf6 {[%clk 0:02:35]}  Qxf6 {[%clk 0:02:11]} 11. Qxf6 {[%clk 0:02:35]}  gxf6 {[%clk 0:02:12]} 12. e3 {[%clk 0:02:33]}  Bd7 {[%clk 0:02:11]} 13. c4 {[%clk 0:02:32]}  dxc4 {[%clk 0:02:11]} 14. Bxc4 {[%clk 0:02:33]}  Rc8 {[%clk 0:02:11]} 15. Kb1 {[%clk 0:02:34]}  Ke7 {[%clk 0:02:11]} 16. Be2 {[%clk 0:02:28]}  Rhg8 {[%clk 0:01:52]} 17. g3 {[%clk 0:02:25]}  Ne5 {[%clk 0:01:49]} 18. Nxe5 {[%clk 0:02:21]}  fxe5 {[%clk 0:01:50]} 19. Bf3 {[%clk 0:02:21]}  Bc6 {[%clk 0:01:50]} 20. Bxc6 {[%clk 0:02:15]}  Rxc6 {[%clk 0:01:51]} 21. Rc1 {[%clk 0:02:14]}  Rxc1+ {[%clk 0:01:35]} 22. Rxc1 {[%clk 0:02:14]}  Kd7 {[%clk 0:01:35]} 23. Rc4 {[%clk 0:02:11]}  Rg6 {[%clk 0:01:22]} 24. Rh4 {[%clk 0:02:10]}  h6 {[%clk 0:01:22]} 25. Kc2 {[%clk 0:01:58]}  Rf6 {[%clk 0:01:18]} 26. f4 {[%clk 0:01:58]}  Kd6 {[%clk 0:01:09]} 27. Kd3 {[%clk 0:01:56]}  Rg6 {[%clk 0:01:07]} 28. fxe5+ {[%clk 0:01:50]}  Kxe5 {[%clk 0:01:07]} 29. Rd4 {[%clk 0:01:50]}  Rf6 {[%clk 0:00:39]} 30. Rd7 {[%clk 0:01:32]}  b6 {[%clk 0:00:38]} 31. Ke2 {[%clk 0:01:28]}  Rf5 {[%clk 0:00:29]} 32. Rxa7 {[%clk 0:01:25]}  Kd6 {[%clk 0:00:29]} 33. a3 {[%clk 0:01:20]}  h5 {[%clk 0:00:29]} 34. Rb7 {[%clk 0:01:15]}  Kc6 {[%clk 0:00:29]} 35. Rb8 {[%clk 0:01:16]}  Rb5 {[%clk 0:00:27]} 36. Rc8+ {[%clk 0:01:13]}  Kd6 {[%clk 0:00:25]} 37. b4 {[%clk 0:01:06]}  Re5 {[%clk 0:00:23]} 38. h4 {[%clk 0:00:52]}  Kd7 {[%clk 0:00:22]} 39. Rg8 {[%clk 0:00:51]}  f6 {[%clk 0:00:20]} 40. g4 {[%clk 0:00:49]}  Re4 {[%clk 0:00:14]} 41. Kd3 {[%clk 0:00:39]}  f5 {[%clk 0:00:11]} 42. gxf5 {[%clk 0:00:29]}  exf5 {[%clk 0:00:12]} 43. Rg5 {[%clk 0:00:29]}  Rxh4 {[%clk 0:00:11]} 44. Rxf5 {[%clk 0:00:30]}  Kc6 {[%clk 0:00:10]} 45. Rf4 {[%clk 0:00:21]}  Rxf4 {[%clk 0:00:06]} 46. exf4 {[%clk 0:00:18]}  b5 {[%clk 0:00:06]} 47. Ke4 {[%clk 0:00:16]}  Kd6 {[%clk 0:00:05]} 48. Kf5 {[%clk 0:00:13]}  Kd5 {[%clk 0:00:06]} 49. Kg5 {[%clk 0:00:10]}  Ke4 {[%clk 0:00:06]} 50. f5 {[%clk 0:00:10]}  h4 {[%clk 0:00:05]} 51. f6 {[%clk 0:00:11]}  h3 {[%clk 0:00:05]} 52. f7 {[%clk 0:00:12]} 1-0


[Site "https://www.chess.com"]

[Event "Early Titled Tuesday Blitz | February 8 2022"]
[White "Murzin, Volodar"]
[Black "Indjic, Aleksandar"]
[WhiteFideId "44155573"]
[BlackFideId "911925"]
[WhiteElo "2585"]
[BlackElo "2616"]
[Result "1-0"]
[Round "11"]
[TimeControl "180+1"]
[Date "2022.02.08"]
[WhiteClock "0:00:36"]
[BlackClock "0:01:08"]

1. e4 {[%clk 0:03:00]}  e5 {[%clk 0:02:59]} 2. Nf3 {[%clk 0:03:01]}  Nc6 {[%clk 0:02:59]} 3. Bb5 {[%clk 0:03:01]}  a6 {[%clk 0:02:59]} 4. Ba4 {[%clk 0:03:01]}  Bc5 {[%clk 0:02:59]} 5. O-O {[%clk 0:03:00]}  d6 {[%clk 0:02:58]} 6. c3 {[%clk 0:03:00]}  Ba7 {[%clk 0:02:57]} 7. d4 {[%clk 0:03:00]}  Bd7 {[%clk 0:02:57]} 8. Bxc6 {[%clk 0:02:52]}  Bxc6 {[%clk 0:02:56]} 9. dxe5 {[%clk 0:02:53]}  dxe5 {[%clk 0:02:56]} 10. Nxe5 {[%clk 0:02:54]}  Bxe4 {[%clk 0:02:49]} 11. Qa4+ {[%clk 0:02:54]}  Bc6 {[%clk 0:02:44]} 12. Nxc6 {[%clk 0:02:54]}  bxc6 {[%clk 0:02:44]} 13. Qxc6+ {[%clk 0:02:53]}  Kf8 {[%clk 0:02:44]} 14. Bf4 {[%clk 0:02:46]}  Ne7 {[%clk 0:02:41]} 15. Qxc7 {[%clk 0:02:45]}  Nd5 {[%clk 0:02:23]} 16. Bd6+ {[%clk 0:02:27]}  Kg8 {[%clk 0:02:21]} 17. Qc6 {[%clk 0:02:27]}  Nf6 {[%clk 0:02:15]} 18. Be7 {[%clk 0:02:26]}  Qe8 {[%clk 0:01:46]} 19. Qf3 {[%clk 0:02:22]}  Ng4 {[%clk 0:01:41]} 20. Nd2 {[%clk 0:01:38]}  h5 {[%clk 0:01:40]} 21. Rae1 {[%clk 0:01:32]}  Rh6 {[%clk 0:01:37]} 22. Bg5 {[%clk 0:01:04]}  Re6 {[%clk 0:01:22]} 23. Rxe6 {[%clk 0:01:02]}  fxe6 {[%clk 0:01:22]} 24. h3 {[%clk 0:00:57]}  Ne5 {[%clk 0:01:21]} 25. Qe4 {[%clk 0:00:55]}  Nf7 {[%clk 0:01:18]} 26. Bf4 {[%clk 0:00:53]}  Rd8 {[%clk 0:01:15]} 27. Nc4 {[%clk 0:00:49]}  Qb5 {[%clk 0:01:08]} 28. Qxe6 {[%clk 0:00:38]}  Re8 {[%clk 0:01:07]} 29. Qxf7+ {[%clk 0:00:36]}  Kxf7 {[%clk 0:01:08]} 30. Nd6+ {[%clk 0:00:36]} 1-0


[Site "https://www.chess.com"]

[Event "Early Titled Tuesday Blitz | February 8 2022"]
[White "Odegov, Artem"]
[Black "Gombocz, Ferenc Jr."]
[WhiteFideId "34183644"]
[BlackFideId "775029"]
[WhiteElo "2277"]
[BlackElo "1913"]
[Result "1/2-1/2"]
[Round "11"]
[TimeControl "180+1"]
[Date "2022.02.08"]
[WhiteClock "0:02:33"]
[BlackClock "0:02:07"]

1. d4 {[%clk 0:03:00]}  d5 {[%clk 0:02:59]} 2. c4 {[%clk 0:03:00]}  c6 {[%clk 0:02:59]} 3. Nf3 {[%clk 0:03:00]}  Nf6 {[%clk 0:02:59]} 4. Nc3 {[%clk 0:03:01]}  a6 {[%clk 0:02:59]} 5. cxd5 {[%clk 0:03:01]}  cxd5 {[%clk 0:02:58]} 6. Bf4 {[%clk 0:03:01]}  Nc6 {[%clk 0:02:59]} 7. e3 {[%clk 0:03:02]}  Qb6 {[%clk 0:02:55]} 8. Qd2 {[%clk 0:02:59]}  Ne4 {[%clk 0:02:52]} 9. Nxe4 {[%clk 0:02:56]}  dxe4 {[%clk 0:02:52]} 10. Ne5 {[%clk 0:02:57]}  Nxe5 {[%clk 0:02:52]} 11. Bxe5 {[%clk 0:02:57]}  Bd7 {[%clk 0:02:51]} 12. Be2 {[%clk 0:02:56]}  f6 {[%clk 0:02:51]} 13. Bg3 {[%clk 0:02:56]}  e6 {[%clk 0:02:52]} 14. O-O {[%clk 0:02:55]}  Bb4 {[%clk 0:02:52]} 15. Qc2 {[%clk 0:02:56]}  Bc6 {[%clk 0:02:49]} 16. a3 {[%clk 0:02:53]}  Be7 {[%clk 0:02:48]} 17. Rac1 {[%clk 0:02:51]}  O-O {[%clk 0:02:48]} 18. Bc4 {[%clk 0:02:51]}  Bd5 {[%clk 0:02:47]} 19. Bxd5 {[%clk 0:02:52]}  exd5 {[%clk 0:02:47]} 20. b4 {[%clk 0:02:51]}  Rac8 {[%clk 0:02:46]} 21. Qb3 {[%clk 0:02:51]}  Qe6 {[%clk 0:02:43]} 22. b5 {[%clk 0:02:48]}  axb5 {[%clk 0:02:41]} 23. Qxb5 {[%clk 0:02:49]}  Bxa3 {[%clk 0:02:39]} 24. Ra1 {[%clk 0:02:47]}  Bd6 {[%clk 0:02:38]} 25. Qxb7 {[%clk 0:02:46]}  Bxg3 {[%clk 0:02:36]} 26. hxg3 {[%clk 0:02:47]}  Rb8 {[%clk 0:02:36]} 27. Qa6 {[%clk 0:02:45]}  Qxa6 {[%clk 0:02:35]} 28. Rxa6 {[%clk 0:02:46]}  Rfd8 {[%clk 0:02:33]} 29. Ra5 {[%clk 0:02:46]}  Rb2 {[%clk 0:02:31]} 30. Rc1 {[%clk 0:02:46]}  h6 {[%clk 0:02:24]} 31. Rcc5 {[%clk 0:02:45]}  Rb1+ {[%clk 0:02:22]} 32. Kh2 {[%clk 0:02:45]}  Rb2 {[%clk 0:02:23]} 33. Rxd5 {[%clk 0:02:42]}  Rxd5 {[%clk 0:02:22]} 34. Rxd5 {[%clk 0:02:43]}  Rxf2 {[%clk 0:02:22]} 35. Rd8+ {[%clk 0:02:43]}  Kf7 {[%clk 0:02:22]} 36. Rd7+ {[%clk 0:02:43]}  Kf8 {[%clk 0:02:22]} 37. Rd6 {[%clk 0:02:40]}  Re2 {[%clk 0:02:20]} 38. Re6 {[%clk 0:02:37]}  Rxe3 {[%clk 0:02:20]} 39. d5 {[%clk 0:02:37]}  Kf7 {[%clk 0:02:16]} 40. Kh3 {[%clk 0:02:35]}  Rd3 {[%clk 0:02:13]} 41. Rxe4 {[%clk 0:02:34]}  Rxd5 {[%clk 0:02:14]} 42. Ra4 {[%clk 0:02:34]}  Kg6 {[%clk 0:02:11]} 43. g4 {[%clk 0:02:35]}  Rd3+ {[%clk 0:02:10]} 44. g3 {[%clk 0:02:35]}  Rd1 {[%clk 0:02:07]} 45. Ra5 {[%clk 0:02:33]}  Rh1+ {[%clk 0:02:06]} 46. Kg2 {[%clk 0:02:33]}  Rb1 {[%clk 0:02:07]} 47. Kh3 {[%clk 0:02:33]} 1/2-1/2


[Site "https://www.chess.com"]

[Event "Early Titled Tuesday Blitz | February 8 2022"]
[White "Orlov, Georgi"]
[Black "Le Ruyet, Leopold"]
[WhiteFideId "2011271"]
[BlackFideId "645923"]
[WhiteElo "2473"]
[BlackElo "2276"]
[Result "1-0"]
[Round "11"]
[TimeControl "180+1"]
[Date "2022.02.08"]
[WhiteClock "0:00:25"]
[BlackClock "0:00:14"]

1. d4 {[%clk 0:02:56]}  d5 {[%clk 0:02:59]} 2. Nf3 {[%clk 0:02:56]}  c5 {[%clk 0:02:59]} 3. c4 {[%clk 0:02:54]}  dxc4 {[%clk 0:02:56]} 4. e3 {[%clk 0:02:52]}  cxd4 {[%clk 0:02:55]} 5. Bxc4 {[%clk 0:02:46]}  Nf6 {[%clk 0:02:54]} 6. O-O {[%clk 0:02:45]}  e6 {[%clk 0:02:54]} 7. exd4 {[%clk 0:02:38]}  Be7 {[%clk 0:02:54]} 8. Nc3 {[%clk 0:02:37]}  O-O {[%clk 0:02:54]} 9. Re1 {[%clk 0:02:37]}  Nc6 {[%clk 0:02:54]} 10. Bg5 {[%clk 0:02:33]}  Nb4 {[%clk 0:02:53]} 11. a3 {[%clk 0:02:27]}  Nbd5 {[%clk 0:02:52]} 12. Ne5 {[%clk 0:02:10]}  Nxc3 {[%clk 0:02:42]} 13. bxc3 {[%clk 0:02:09]}  Nd5 {[%clk 0:02:40]} 14. Bxe7 {[%clk 0:01:58]}  Nxe7 {[%clk 0:02:41]} 15. Qf3 {[%clk 0:01:58]}  Qc7 {[%clk 0:02:37]} 16. Bd3 {[%clk 0:01:28]}  Bd7 {[%clk 0:02:18]} 17. Re3 {[%clk 0:01:15]}  Nf5 {[%clk 0:02:01]} 18. Bxf5 {[%clk 0:01:14]}  exf5 {[%clk 0:02:01]} 19. d5 {[%clk 0:01:02]}  Rae8 {[%clk 0:01:29]} 20. d6 {[%clk 0:00:56]}  Qc8 {[%clk 0:01:29]} 21. Rd1 {[%clk 0:00:52]}  g6 {[%clk 0:01:15]} 22. Rd4 {[%clk 0:00:50]}  Re6 {[%clk 0:01:04]} 23. Qd5 {[%clk 0:00:42]}  Rfe8 {[%clk 0:01:00]} 24. Rc4 {[%clk 0:00:39]}  Qd8 {[%clk 0:00:44]} 25. Rc7 {[%clk 0:00:39]}  Bc8 {[%clk 0:00:24]} 26. Nxf7 {[%clk 0:00:32]}  Qf6 {[%clk 0:00:22]} 27. Nh6+ {[%clk 0:00:29]}  Kh8 {[%clk 0:00:20]} 28. d7 {[%clk 0:00:27]}  Rxe3 {[%clk 0:00:18]} 29. fxe3 {[%clk 0:00:26]}  Bxd7 {[%clk 0:00:14]} 30. Qxd7 {[%clk 0:00:25]} 1-0


[Site "https://www.chess.com"]

[Event "Early Titled Tuesday Blitz | February 8 2022"]
[White "Oro, Luis"]
[Black "Farmani Anosheh, Armin"]
[WhiteFideId "104094"]
[BlackFideId "24613240"]
[WhiteElo "2284"]
[BlackElo "2289"]
[Result "1-0"]
[Round "11"]
[TimeControl "180+1"]
[Date "2022.02.08"]
[WhiteClock "0:00:46"]
[BlackClock "0:00:07"]

1. e4 {[%clk 0:02:59]}  c5 {[%clk 0:02:58]} 2. Nf3 {[%clk 0:02:58]}  d6 {[%clk 0:02:58]} 3. d4 {[%clk 0:02:58]}  cxd4 {[%clk 0:02:58]} 4. Nxd4 {[%clk 0:02:59]}  Nf6 {[%clk 0:02:59]} 5. Nc3 {[%clk 0:02:59]}  Nc6 {[%clk 0:02:59]} 6. f3 {[%clk 0:02:58]}  e5 {[%clk 0:02:59]} 7. Nb3 {[%clk 0:02:56]}  Be6 {[%clk 0:03:00]} 8. Be3 {[%clk 0:02:56]}  d5 {[%clk 0:02:55]} 9. exd5 {[%clk 0:02:56]}  Nxd5 {[%clk 0:02:56]} 10. Nxd5 {[%clk 0:02:56]}  Qxd5 {[%clk 0:02:57]} 11. Qxd5 {[%clk 0:02:56]}  Bxd5 {[%clk 0:02:58]} 12. O-O-O {[%clk 0:02:57]}  O-O-O {[%clk 0:02:56]} 13. Bb5 {[%clk 0:02:55]}  a6 {[%clk 0:02:32]} 14. Be2 {[%clk 0:02:54]}  Kc7 {[%clk 0:02:23]} 15. Rhe1 {[%clk 0:02:47]}  Be7 {[%clk 0:02:07]} 16. Bf2 {[%clk 0:02:25]}  f6 {[%clk 0:01:45]} 17. Bd3 {[%clk 0:02:21]}  g6 {[%clk 0:01:34]} 18. c3 {[%clk 0:02:07]}  Bd6 {[%clk 0:01:24]} 19. Bc2 {[%clk 0:02:02]}  Bf7 {[%clk 0:01:22]} 20. g4 {[%clk 0:01:54]}  Rhe8 {[%clk 0:01:21]} 21. Bg3 {[%clk 0:01:54]}  Ne7 {[%clk 0:00:30]} 22. h4 {[%clk 0:01:50]}  Nd5 {[%clk 0:00:30]} 23. Nd2 {[%clk 0:01:36]}  Nf4 {[%clk 0:00:28]} 24. Bxf4 {[%clk 0:01:33]}  exf4 {[%clk 0:00:29]} 25. Bb3 {[%clk 0:01:34]}  Bxb3 {[%clk 0:00:27]} 26. axb3 {[%clk 0:01:34]}  Re3 {[%clk 0:00:27]} 27. Kc2 {[%clk 0:01:20]}  Be5 {[%clk 0:00:21]} 28. Rxe3 {[%clk 0:01:13]}  fxe3 {[%clk 0:00:21]} 29. Nc4 {[%clk 0:01:13]}  Re8 {[%clk 0:00:16]} 30. Nxe3 {[%clk 0:01:10]}  Bg3 {[%clk 0:00:16]} 31. Nd5+ {[%clk 0:01:10]}  Kc6 {[%clk 0:00:17]} 32. Nxf6 {[%clk 0:01:02]}  Re3 {[%clk 0:00:17]} 33. h5 {[%clk 0:00:52]}  Rxf3 {[%clk 0:00:17]} 34. Nxh7 {[%clk 0:00:51]}  gxh5 {[%clk 0:00:11]} 35. gxh5 {[%clk 0:00:52]}  Bf4 {[%clk 0:00:11]} 36. Nf6 {[%clk 0:00:48]}  Rf2+ {[%clk 0:00:12]} 37. Kb1 {[%clk 0:00:48]}  Bh6 {[%clk 0:00:12]} 38. Ng4 {[%clk 0:00:47]}  Rd2 {[%clk 0:00:07]} 39. Rxd2 {[%clk 0:00:46]}  Bxd2 {[%clk 0:00:08]} 40. h6 {[%clk 0:00:46]}  Bf4 {[%clk 0:00:06]} 41. h7 {[%clk 0:00:46]}  Be5 {[%clk 0:00:07]} 42. Nxe5+ {[%clk 0:00:46]} 1-0


[Site "https://www.chess.com"]

[Event "Early Titled Tuesday Blitz | February 8 2022"]
[White "Ovetchkin, Roman"]
[Black "Borisova, Ekaterina"]
[WhiteFideId "4119991"]
[BlackFideId "34124184"]
[WhiteElo "2409"]
[BlackElo "2034"]
[Result "0-1"]
[Round "11"]
[TimeControl "180+1"]
[Date "2022.02.08"]
[WhiteClock "0:00:02"]
[BlackClock "0:00:03"]

1. d4 {[%clk 0:02:57]}  Nf6 {[%clk 0:02:59]} 2. c4 {[%clk 0:02:57]}  e6 {[%clk 0:03:00]} 3. g3 {[%clk 0:02:57]}  d5 {[%clk 0:03:00]} 4. Bg2 {[%clk 0:02:56]}  dxc4 {[%clk 0:02:57]} 5. Nf3 {[%clk 0:02:56]}  a6 {[%clk 0:02:56]} 6. O-O {[%clk 0:02:53]}  Nc6 {[%clk 0:02:57]} 7. Be3 {[%clk 0:02:47]}  Rb8 {[%clk 0:02:55]} 8. Qc1 {[%clk 0:02:39]}  b5 {[%clk 0:02:44]} 9. b3 {[%clk 0:02:37]}  Na5 {[%clk 0:02:38]} 10. Ne5 {[%clk 0:02:12]}  Nd5 {[%clk 0:02:28]} 11. bxc4 {[%clk 0:02:07]}  bxc4 {[%clk 0:02:27]} 12. Bd2 {[%clk 0:01:56]}  Bb4 {[%clk 0:02:23]} 13. Nxc4 {[%clk 0:01:52]}  Nxc4 {[%clk 0:02:19]} 14. Qxc4 {[%clk 0:01:52]}  O-O {[%clk 0:02:15]} 15. Rc1 {[%clk 0:01:44]}  a5 {[%clk 0:02:10]} 16. e3 {[%clk 0:01:40]}  Bb7 {[%clk 0:01:40]} 17. a3 {[%clk 0:01:31]}  Bd6 {[%clk 0:01:02]} 18. Bxa5 {[%clk 0:01:26]}  Ra8 {[%clk 0:00:59]} 19. Be1 {[%clk 0:01:21]}  Nb6 {[%clk 0:00:55]} 20. Qc2 {[%clk 0:01:16]}  Bxg2 {[%clk 0:00:54]} 21. Kxg2 {[%clk 0:01:17]}  Qg5 {[%clk 0:00:54]} 22. Qc6 {[%clk 0:01:07]}  h5 {[%clk 0:00:51]} 23. a4 {[%clk 0:00:52]}  h4 {[%clk 0:00:48]} 24. Nc3 {[%clk 0:00:29]}  Nd5 {[%clk 0:00:24]} 25. Nxd5 {[%clk 0:00:28]}  exd5 {[%clk 0:00:25]} 26. Qd7 {[%clk 0:00:25]}  Rfd8 {[%clk 0:00:20]} 27. Qh3 {[%clk 0:00:24]}  hxg3 {[%clk 0:00:16]} 28. hxg3 {[%clk 0:00:25]}  Qg6 {[%clk 0:00:15]} 29. Qh4 {[%clk 0:00:21]}  Re8 {[%clk 0:00:15]} 30. a5 {[%clk 0:00:19]}  Re4 {[%clk 0:00:15]} 31. Qh3 {[%clk 0:00:19]}  Re6 {[%clk 0:00:12]} 32. Kg1 {[%clk 0:00:14]}  Qd3 {[%clk 0:00:11]} 33. Qf1 {[%clk 0:00:14]}  Qe4 {[%clk 0:00:09]} 34. Qg2 {[%clk 0:00:14]}  Qd3 {[%clk 0:00:09]} 35. Qxd5 {[%clk 0:00:14]}  Ra7 {[%clk 0:00:06]} 36. Rc3 {[%clk 0:00:11]}  Qe2 {[%clk 0:00:04]} 37. Rb3 {[%clk 0:00:10]}  Rh6 {[%clk 0:00:04]} 38. Rb8+ {[%clk 0:00:09]}  Bf8 {[%clk 0:00:04]} 39. Qe4 {[%clk 0:00:07]}  Qh5 {[%clk 0:00:03]} 40. Rab1 {[%clk 0:00:05]}  Qh2+ {[%clk 0:00:03]} 41. Kf1 {[%clk 0:00:05]}  g6 {[%clk 0:00:02]} 42. Re8 {[%clk 0:00:03]}  Kg7 {[%clk 0:00:02]} 43. Rbb8 {[%clk 0:00:02]}  Qh3+ {[%clk 0:00:03]} 0-1


[Site "https://www.chess.com"]

[Event "Early Titled Tuesday Blitz | February 8 2022"]
[White "Papasimakopoulos, Alexandros"]
[Black "Khripachenko, Alexander"]
[WhiteFideId "4244125"]
[BlackFideId "54184975"]
[WhiteElo "2340"]
[BlackElo "2177"]
[Result "1-0"]
[Round "11"]
[TimeControl "180+1"]
[Date "2022.02.08"]
[WhiteClock "0:00:53"]
[BlackClock "0:00:09"]

1. d4 {[%clk 0:03:00]}  Nf6 {[%clk 0:02:58]} 2. c4 {[%clk 0:03:01]}  g6 {[%clk 0:02:58]} 3. Nc3 {[%clk 0:03:01]}  d5 {[%clk 0:02:58]} 4. Nf3 {[%clk 0:03:01]}  Bg7 {[%clk 0:02:58]} 5. Qb3 {[%clk 0:03:01]}  dxc4 {[%clk 0:02:58]} 6. Qxc4 {[%clk 0:03:01]}  O-O {[%clk 0:02:59]} 7. e4 {[%clk 0:02:59]}  a6 {[%clk 0:02:59]} 8. Be2 {[%clk 0:02:59]}  b5 {[%clk 0:02:59]} 9. Qb3 {[%clk 0:03:00]}  c5 {[%clk 0:03:00]} 10. dxc5 {[%clk 0:03:00]}  Bb7 {[%clk 0:02:45]} 11. e5 {[%clk 0:03:00]}  Nfd7 {[%clk 0:02:46]} 12. Be3 {[%clk 0:02:59]}  Nxe5 {[%clk 0:02:45]} 13. Nxe5 {[%clk 0:02:59]}  Bxe5 {[%clk 0:02:46]} 14. O-O {[%clk 0:02:59]}  Qc7 {[%clk 0:02:43]} 15. f4 {[%clk 0:02:56]}  Bg7 {[%clk 0:02:40]} 16. a4 {[%clk 0:02:57]}  bxa4 {[%clk 0:02:32]} 17. Nxa4 {[%clk 0:02:56]}  Nd7 {[%clk 0:02:32]} 18. Rfd1 {[%clk 0:02:53]}  Rfd8 {[%clk 0:02:31]} 19. Rxd7 {[%clk 0:02:52]}  Rxd7 {[%clk 0:01:23]} 20. Nb6 {[%clk 0:02:51]}  Bd4 {[%clk 0:01:23]} 21. Nxd7 {[%clk 0:02:45]}  Qxf4 {[%clk 0:01:17]} 22. Qxb7 {[%clk 0:02:30]}  Qxe3+ {[%clk 0:01:01]} 23. Kh1 {[%clk 0:02:25]}  Re8 {[%clk 0:01:02]} 24. Bxa6 {[%clk 0:02:13]}  Qd2 {[%clk 0:00:37]} 25. c6 {[%clk 0:01:47]}  Bxb2 {[%clk 0:00:36]} 26. Rb1 {[%clk 0:01:45]}  Bc1 {[%clk 0:00:36]} 27. Bf1 {[%clk 0:01:38]}  Qe1 {[%clk 0:00:31]} 28. Qb5 {[%clk 0:01:35]}  Rc8 {[%clk 0:00:18]} 29. Ne5 {[%clk 0:01:16]}  Kg7 {[%clk 0:00:14]} 30. Nf3 {[%clk 0:01:13]}  Qe3 {[%clk 0:00:14]} 31. Qe5+ {[%clk 0:01:08]}  Qxe5 {[%clk 0:00:14]} 32. Nxe5 {[%clk 0:01:08]}  Bf4 {[%clk 0:00:13]} 33. Nd3 {[%clk 0:01:03]}  Be3 {[%clk 0:00:13]} 34. Nb4 {[%clk 0:01:00]}  Bd2 {[%clk 0:00:12]} 35. Ba6 {[%clk 0:00:58]}  Rc7 {[%clk 0:00:11]} 36. Bb7 {[%clk 0:00:58]}  Bxb4 {[%clk 0:00:10]} 37. Rxb4 {[%clk 0:00:57]}  Kf6 {[%clk 0:00:10]} 38. Kg1 {[%clk 0:00:58]}  e5 {[%clk 0:00:11]} 39. Kf2 {[%clk 0:00:58]}  Ke6 {[%clk 0:00:11]} 40. Ke3 {[%clk 0:00:59]}  f5 {[%clk 0:00:12]} 41. Rb1 {[%clk 0:00:58]}  Rf7 {[%clk 0:00:09]} 42. Rc1 {[%clk 0:00:57]}  Kd6 {[%clk 0:00:08]} 43. Rd1+ {[%clk 0:00:55]}  Ke6 {[%clk 0:00:09]} 44. Rd7 {[%clk 0:00:53]} 1-0


[Site "https://www.chess.com"]

[Event "Early Titled Tuesday Blitz | February 8 2022"]
[White "Papp, Petra"]
[Black "Terletsky, Oleg"]
[WhiteFideId "739049"]
[BlackFideId "14116774"]
[WhiteElo "2259"]
[BlackElo "2050"]
[Result "1-0"]
[Round "11"]
[TimeControl "180+1"]
[Date "2022.02.08"]
[WhiteClock "0:00:15"]
[BlackClock "0:00:01"]

1. e4 {[%clk 0:03:00]}  e5 {[%clk 0:02:58]} 2. Nf3 {[%clk 0:02:59]}  Nc6 {[%clk 0:02:58]} 3. Bc4 {[%clk 0:02:54]}  Nf6 {[%clk 0:02:57]} 4. d3 {[%clk 0:02:52]}  h6 {[%clk 0:02:58]} 5. O-O {[%clk 0:02:52]}  d6 {[%clk 0:02:58]} 6. c3 {[%clk 0:02:51]}  g6 {[%clk 0:02:56]} 7. Re1 {[%clk 0:02:51]}  Bg7 {[%clk 0:02:56]} 8. b4 {[%clk 0:02:52]}  O-O {[%clk 0:02:55]} 9. Nbd2 {[%clk 0:02:52]}  Nh5 {[%clk 0:02:50]} 10. Nf1 {[%clk 0:02:51]}  Kh7 {[%clk 0:02:49]} 11. a4 {[%clk 0:02:47]}  Qe8 {[%clk 0:02:43]} 12. b5 {[%clk 0:02:45]}  Nd8 {[%clk 0:02:31]} 13. d4 {[%clk 0:02:44]}  Ne6 {[%clk 0:02:27]} 14. Ba3 {[%clk 0:02:31]}  Rg8 {[%clk 0:01:59]} 15. Qd2 {[%clk 0:02:27]}  Nef4 {[%clk 0:01:53]} 16. Ne3 {[%clk 0:02:11]}  f5 {[%clk 0:01:47]} 17. Bxg8+ {[%clk 0:02:06]}  Qxg8 {[%clk 0:01:47]} 18. dxe5 {[%clk 0:01:57]}  fxe4 {[%clk 0:01:40]} 19. exd6 {[%clk 0:01:33]}  exf3 {[%clk 0:01:29]} 20. d7 {[%clk 0:01:33]}  Bxd7 {[%clk 0:01:18]} 21. Qxd7 {[%clk 0:01:31]}  Rd8 {[%clk 0:01:14]} 22. Qxc7 {[%clk 0:01:27]}  fxg2 {[%clk 0:01:13]} 23. Bd6 {[%clk 0:01:07]}  Ne6 {[%clk 0:01:01]} 24. Qe7 {[%clk 0:00:57]}  Kh8 {[%clk 0:00:33]} 25. Nxg2 {[%clk 0:00:54]}  Ng5 {[%clk 0:00:30]} 26. Bg3 {[%clk 0:00:36]}  Nf3+ {[%clk 0:00:26]} 27. Kh1 {[%clk 0:00:36]}  Nxe1 {[%clk 0:00:19]} 28. Rxe1 {[%clk 0:00:37]}  Nxg3+ {[%clk 0:00:18]} 29. hxg3 {[%clk 0:00:37]}  Bxc3 {[%clk 0:00:15]} 30. Rc1 {[%clk 0:00:33]}  Bg7 {[%clk 0:00:08]} 31. Nf4 {[%clk 0:00:32]}  Kh7 {[%clk 0:00:06]} 32. Rc7 {[%clk 0:00:30]}  Re8 {[%clk 0:00:06]} 33. Qd7 {[%clk 0:00:26]}  Qf8 {[%clk 0:00:04]} 34. Ne6 {[%clk 0:00:15]}  Qf3+ {[%clk 0:00:01]} 35. Kg1 {[%clk 0:00:15]} 1-0


[Site "https://www.chess.com"]